fUST/lending_fUST_20260204
["ID","MTS","AMOUNT","RATE_DAILY","PERIOD"]
[404469300,1770168507493,1000.0,0.0001,2]
[404469305,1770168552170,-303.10001603,0.000189,2]
[404469306,1770168552189,-298.49895743,0.00019089,2]
[404469307,1770168552208,-3428.78379667,0.00025,2]
[404469308,1770168552228,-300.0,0.00026574,2]
[404469309,1770168552248,-312.0,0.00028573,2]
[404469310,1770168552268,-152.0,0.00028742,2]
[404469311,1770168552289,-500.0,0.00029266,2]
[404469312,1770168552309,-500.0,0.00029266,2]
[404469313,1770168552330,-283.32446483,0.00029266,2]
[404469314,1770168552348,-8643.7942845,0.00029267,2]
[404469315,1770168552367,-2648.01335405,0.00029509,2]
[404469316,1770168552386,-339.0,0.00030573,2]
[404469317,1770168552405,-3800.616399,0.00032113,2]
[404469318,1770168552426,-366.0,0.00032573,2]
[404469319,1770168552446,-393.0,0.00034573,120]
[404469320,1770168552465,-154.076,0.0003526,41]
[404469321,1770168552484,-420.0,0.00036573,120]
[404469322,1770168552503,-447.0,0.00038573,120]
[404469323,1770168552521,-740.91124423,0.00038832,2]
[404469324,1770168552543,-267.41467241,0.0003997,2]
[404469325,1770168552565,-837.0,0.00039973,20]
[404469326,1770168552585,-5735.49920281,0.00041986,2]
[404469327,1770168552606,-274.39941134,0.0004201,2]
[404469328,1770168558094,-155.0,0.00048,90]
[404469329,1770168564235,156.0,0.00048,90]
[404469330,1770168590576,12871.89927037,0.00032273,2]
[404469331,1770168590880,12871.89927037,0.00048402,2]
[404469332,1770168602420,189.62551925,0.00039973,20]
[404469333,1770168604703,316.85079511,0.00039973,20]
[404469334,1770168606070,321.84912525,0.00039973,20]
[404469335,1770168624115,229.88719249,0.00039973,2]
[404469336,1770168626940,682.273836,0.00039973,120]
[404469352,1770168632386,-151.83776312,0.00039973,2]
[404469353,1770168632396,-288.57559013,0.00039973,2]
[404469354,1770168632438,-674.76220887,0.00039973,2]
[404469355,1770168632450,-644.65951257,0.00039973,2]
[404469356,1770168632461,-1496.8897785,0.00039973,2]
[404469388,1770168638493,-1074.53078762,0.00039973,2]
[404469390,1770168638503,-496.28749434,0.00039973,2]
[404469392,1770168638513,-4761.82607509,0.00039973,2]
[404469756,1770168644901,-391.45923534,0.00039973,2]
[404469757,1770168644945,-840.20940277,0.00039973,2]
[404469758,1770168644956,-73.94841109,0.00039973,2]
[404469759,1770168644967,-159.24167817,0.00039973,2]
[404469760,1770168644978,-155.74586768,0.00039973,2]
[404469769,1770168646780,-1579.17943932,0.00039973,2]
[404469770,1770168646790,-1031.5195162,0.00039973,2]
[404469771,1770168646800,-49479.91122154,0.00039973,2]
[404469772,1770168646809,-200.12664579,0.00039973,2]
[404469773,1770168646819,-389.37313301,0.00039973,2]
[404469774,1770168646828,-203.35073635,0.00039973,2]
[404469775,1770168646837,-3179.57331281,0.00039973,2]
[404469776,1770168646847,-18793.43922635,0.00039973,2]
[404469777,1770168646858,-207.50287306,0.00049373,21]
[404469778,1770168646868,-772.46,0.00049461,10]
[404469779,1770168646877,-643.71,0.00049461,10]
[404469780,1770168646887,-75443.76322028,0.00049471,2]
[404469781,1770168647236,-7283.81137337,0.00049471,2]
[404469782,1770168649708,1398.1833,0.0003222,30]
[404469783,1770168672948,4504.0,0.00039973,20]
[404469784,1770168727606,3016.0,0.00039973,20]
[404469785,1770168746829,190.75542516,0.00039973,20]
[404469786,1770168793756,500.0,0.00013273,2]
[404469787,1770168793797,507.11963361,0.00013821,2]
[404469789,1770169210124,150.39964,0.00039972,60]
[404469792,1770169619095,-903.73433778,0.00032273,2]
[404469793,1770169632083,-10969.20087484,0.00032273,2]
[404469794,1770169632104,-2736.12930495,0.0003967,2]
[404469795,1770169632136,-300.0,0.0003997,20]
[404469796,1770169632161,-1000.0,0.00040974,30]
[404469797,1770169632184,-188.2464072,0.00042778,2]
[404469798,1770169632204,-366.3991629,0.00042952,2]
[404469799,1770169632225,-2056.80892,0.00044949,2]
[404469800,1770169632246,-536.0,0.00046,120]
[404469801,1770169632269,-2056.80892,0.00046841,2]
[404469802,1770169632292,-160.0,0.00047182,3]
[404469803,1770169632323,-740.91124423,0.00047785,2]
[404469804,1770169632351,-1041.66666667,0.00047919,2]
[404469805,1770169632375,-158.0,0.00048,90]
[404469806,1770169632398,-159.70375634,0.00048347,83]
[404469807,1770169632421,-11872.93521262,0.00048402,2]
[404469808,1770169632446,-2056.80892,0.00048733,2]
[404469809,1770169632469,-182.12,0.00048946,12]
[404469810,1770169632490,-186.43584419,0.00049,120]
[404469811,1770169632511,-212.91738286,0.00049461,4]
[404469812,1770169632531,-274.90152258,0.0004947,120]
[404469813,1770169632552,-25511.88582211,0.00049471,2]
[404469814,1770169648074,-516.97257785,0.00039972,20]
[404469815,1770169648095,-659.38,0.00049461,10]
[404469816,1770169648115,-1305.92771605,0.00049471,2]
[404469817,1770169811438,1990.76303244,0.00026849,2]
[404469818,1770169811460,944.33073709,0.00026849,2]
[404469836,1770169832565,-8007.19324395,0.00026849,2]
[404469838,1770169832576,-277.43960847,0.00043065,120]
[404469840,1770169832586,-7857.46442758,0.00043165,2]
[404469842,1770169832597,-3084.8225859,0.00043165,2]
[404469844,1770169832606,-740.91124423,0.00049371,2]
[404469846,1770169832616,-210.14041785,0.00049373,21]
[404469848,1770169832625,-18095.1923016,0.00049459,2]
[404469911,1770169838863,-2544.97257376,0.00039971,20]
[404469913,1770169838873,-417.65,0.00049449,10]
[404469915,1770169838882,-5942.31570715,0.00049459,2]
[404470095,1770169840982,-3696.73196605,0.00049459,2]
[404470106,1770169845001,-967.9999982,0.00049459,2]
[404470107,1770169845013,-385.0,0.00049459,2]
[404470109,1770169845079,-1.38145932,0.00049459,2]
[404470110,1770169845803,-303.72887198,0.00049449,10]
[404470121,1770169846917,-44.32112802,0.00049449,10]
[404470122,1770169846928,-197494.39671569,0.00049459,2]
[404470123,1770169846937,-7473.38771274,0.00049459,2]
[404470124,1770169846947,-212.91738284,0.00049461,4]
[404470125,1770169846957,-289.78,0.00049461,10]
[404470126,1770169846968,-501.19,0.00049461,10]
[404470127,1770169846977,-19019.85959068,0.00049473,2]
[404470128,1770169846986,-76323.44,0.000499,120]
[404470129,1770169846996,-151.0,0.000499,28]
[404470130,1770169847006,-151.0,0.000499,28]
[404470131,1770169847016,-151.0,0.000499,120]
[404470132,1770169847026,-151.0,0.000499,120]
[404470133,1770169847035,-151.0,0.000499,120]
[404470134,1770169847047,-151.0,0.000499,120]
[404470135,1770169847057,-212.91738284,0.0004999,4]
[404470136,1770169847066,-145088.14240852,0.0005,30]
[404470137,1770169847075,-295.0,0.0005,90]
[404470138,1770169847085,-151.0,0.0005,28]
[404470139,1770169847095,-151.0,0.0005,28]
[404470140,1770169847104,-151.0,0.0005,120]
[404470141,1770169847115,-151.0,0.0005,120]
[404470142,1770169847124,-151.0,0.0005,120]
[404470143,1770169847135,-151.0,0.0005,120]
[404470144,1770169847144,-151.0,0.0005,120]
[404470145,1770169847154,-151.0,0.0005,120]
[404470146,1770169847165,-151.0,0.0005,120]
[404470147,1770169847174,-151.0,0.0005,2]
[404470148,1770169847185,-205.61406,0.0005,120]
[404470149,1770169847194,-151.0,0.00050136,30]
[404470150,1770169847203,-182.0,0.00050137,120]
[404470151,1770169847213,-150.0,0.000503,60]
[404470152,1770169847223,-2056.80892,0.00050625,2]
[404470153,1770169847231,-151.0,0.00050821,32]
[404470154,1770169847241,-309.05025958,0.00051292,2]
[404470155,1770169847250,-171.40379889,0.00051506,34]
[404470156,1770169847259,-151.0,0.000518,120]
[404470157,1770169847268,-206.444744,0.00052055,60]
[404470158,1770169847278,-206.444745,0.00052055,60]
[404470159,1770169847287,-605.9270658,0.000521,30]
[404470160,1770169847296,-500.0,0.00052158,2]
[404470161,1770169847305,-500.0,0.00052158,2]
[404470162,1770169847314,-500.0,0.00052158,2]
[404470163,1770169847324,-500.0,0.00052158,2]
[404470164,1770169847334,-500.0,0.00052158,2]
[404470165,1770169847344,-500.0,0.00052158,2]
[404470166,1770169847356,-500.0,0.00052158,2]
[404470167,1770169847365,-500.0,0.00052158,2]
[404470168,1770169847374,-500.0,0.00052158,2]
[404470169,1770169847384,-500.0,0.00052158,2]
[404470170,1770169847394,-500.0,0.00052158,2]
[404470171,1770169847403,-151.0,0.00052189,120]
[404470172,1770169847411,-151.0,0.00052189,60]
[404470173,1770169847421,-151.0,0.00052189,60]
[404470174,1770169847432,-151.0,0.00052189,60]
[404470175,1770169847441,-151.0,0.00052189,120]
[404470176,1770169847451,-151.0,0.00052189,120]
[404470177,1770169847459,-151.0,0.00052189,120]
[404470178,1770169847469,-151.0,0.00052189,120]
[404470179,1770169847478,-196.956694,0.00052189,120]
[404470180,1770169847487,-151.0,0.00052189,120]
[404470181,1770169847497,-261.861534,0.00052189,120]
[404470182,1770169847507,-500.25015,0.00052189,90]
[404470183,1770169847516,-500.25015,0.00052189,90]
[404470184,1770169847527,-500.25015,0.00052189,90]
[404470185,1770169847536,-500.25015,0.00052189,90]
[404470186,1770169847545,-1063.758888,0.00052189,120]
[404470187,1770169847556,-1063.758888,0.00052189,120]
[404470188,1770169847565,-1063.758888,0.00052189,120]
[404470189,1770169847574,-1063.758888,0.00052189,120]
[404470190,1770169847584,-225.273589,0.00052189,120]
[404470191,1770169847594,-160.0,0.00052191,4]
[404470192,1770169847604,-162.32780697,0.00052191,5]
[404470193,1770169847613,-605.9270658,0.000522,30]
[404470194,1770169847623,-605.9270658,0.000522,30]
[404470195,1770169847632,-605.9270658,0.000522,30]
[404470196,1770169847641,-605.9270658,0.000522,30]
[404470197,1770169847651,-605.9270658,0.000522,30]
[404470198,1770169847660,-605.9270658,0.000522,30]
[404470199,1770169847670,-605.9270658,0.0005229,30]
[404470200,1770169847679,-605.9270658,0.0005229,30]
[404470201,1770169847688,-151.0,0.00052334,2]
[404470202,1770169847698,-605.9270658,0.00052334,30]
[404470203,1770169847707,-605.9270658,0.00052334,30]
[404470204,1770169847717,-605.9270658,0.00052334,30]
[404470205,1770169847726,-605.9270658,0.00052334,30]
[404470206,1770169847735,-605.9270658,0.00052334,30]
[404470207,1770169847744,-605.9270658,0.00052334,30]
[404470208,1770169847754,-605.9270658,0.00052334,30]
[404470209,1770169847764,-605.9270658,0.00052334,30]
[404470210,1770169847773,-605.9270658,0.00052334,30]
[404470211,1770169847782,-605.9270658,0.00052334,30]
[404470212,1770169847791,-605.9270658,0.00052334,30]
[404470213,1770169847800,-605.9270658,0.00052334,30]
[404470214,1770169847928,-605.9270658,0.00052334,30]
[404470215,1770169847939,-605.9270658,0.00052334,30]
[404470216,1770169847948,-605.9270658,0.00052378,30]
[404470217,1770169847958,-605.9270658,0.00052378,30]
[404470218,1770169847968,-2056.80892,0.00052518,2]
[404470219,1770169847977,-1260.29222194,0.00053,120]
[404470220,1770169847988,-151.0,0.00053,28]
[404470221,1770169847997,-271.647052,0.00053,28]
[404470222,1770169848008,-151.0,0.00053,120]
[404470223,1770169848017,-151.0,0.00053,120]
[404470224,1770169848027,-151.0,0.00053,120]
[404470225,1770169848037,-187.520557,0.00053,120]
[404470226,1770169848047,-605.9270658,0.00053078,30]
[404470227,1770169848056,-605.9270658,0.00053178,30]
[404470228,1770169848066,-605.9270658,0.00053178,30]
[404470229,1770169848075,-605.9270658,0.00053178,30]
[404470230,1770169848085,-200.307543,0.00053196,120]
[404470231,1770169848095,-284.441459,0.00053196,120]
[404470232,1770169848103,-150.631,0.00053197,120]
[404470233,1770169848114,-150.154,0.00053197,120]
[404470234,1770169848124,-246.056,0.00053197,120]
[404470235,1770169848134,-233.066,0.00053197,120]
[404470236,1770169848144,-199.724,0.00053197,120]
[404470237,1770169848154,-268.29,0.00053197,120]
[404470238,1770169848163,-605.9270658,0.00053378,30]
[404470239,1770169848172,-621.1347684,0.00053378,30]
[404470240,1770169848182,-151.0,0.000536,120]
[404470241,1770169848191,-168.0,0.00053894,2]
[404470242,1770169848200,-1385.514,0.00054123,120]
[404470243,1770169848210,-500.0,0.00054223,30]
[404470244,1770169848219,-37564.7032671,0.00054246,2]
[404470245,1770169848228,-151.0,0.00054246,120]
[404470246,1770169848237,-151.0,0.00054246,120]
[404470247,1770169848246,-151.0,0.00054246,60]
[404470248,1770169848255,-151.0,0.00054246,60]
[404470249,1770169848265,-151.0,0.00054246,60]
[404470250,1770169848274,-151.0,0.00054246,60]
[404470251,1770169848283,-151.0,0.00054246,60]
[404470252,1770169848293,-277.595378,0.00054246,60]
[404470253,1770169848302,-160.065506,0.00054246,120]
[404470254,1770169848311,-151.0,0.00054246,120]
[404470255,1770169848320,-151.0,0.00054246,120]
[404470256,1770169848330,-151.0,0.00054246,120]
[404470257,1770169848339,-151.0,0.00054246,120]
[404470258,1770169848349,-263.52892,0.00054246,120]
[404470259,1770169848359,-151.0,0.00054246,120]
[404470260,1770169848370,-151.0,0.00054246,120]
[404470261,1770169848379,-500.25015,0.00054246,90]
[404470262,1770169848388,-500.25015,0.00054246,90]
[404470263,1770169848398,-500.25015,0.00054246,90]
[404470264,1770169848407,-500.25015,0.00054246,90]
[404470265,1770169848417,-500.25015,0.00054246,90]
[404470266,1770169848427,-500.25015,0.00054246,90]
[404470267,1770169848437,-500.25015,0.00054246,90]
[404470268,1770169848446,-500.25015,0.00054246,90]
[404470269,1770169848456,-1063.758888,0.00054246,120]
[404470270,1770169848465,-1063.758888,0.00054246,120]
[404470271,1770169848474,-1063.758888,0.00054246,120]
[404470272,1770169848483,-1063.758888,0.00054246,120]
[404470273,1770169848493,-1063.758888,0.00054246,120]
[404470274,1770169848502,-1063.758888,0.00054246,120]
[404470275,1770169848511,-1063.758888,0.00054246,120]
[404470276,1770169848520,-1063.758888,0.00054246,120]
[404470277,1770169848530,-1404.01706693,0.00054246,2]
[404470278,1770169848539,-72034.62461434,0.00054246,2]
[404470279,1770169848548,-15021.50081227,0.00054246,2]
[404470280,1770169848558,-151.0,0.00054246,28]
[404470281,1770169848568,-151.0,0.00054246,28]
[404470282,1770169848577,-151.0,0.00054246,120]
[404470283,1770169848587,-151.0,0.00054246,120]
[404470284,1770169848597,-151.0,0.00054246,120]
[404470285,1770169848606,-151.0,0.00054246,120]
[404470286,1770169848616,-151.0,0.00054246,120]
[404470287,1770169848625,-151.0,0.00054246,120]
[404470288,1770169848635,-151.0,0.00054246,2]
[404470289,1770169848645,-151.0,0.00054246,2]
[404470290,1770169848655,-1696.98097621,0.00054247,2]
[404470291,1770169848666,-151.87,0.000543,14]
[404470292,1770169848675,-151.0,0.000543,27]
[404470293,1770169848685,-2056.80892,0.0005441,2]
[404470294,1770169848694,-722.06191546,0.000546,120]
[404470295,1770169848714,-63336.86205663,0.000547,120]
[404470296,1770169848925,-7487.28278925,0.000547,120]
[404470297,1770169867377,597.8576457,0.00013273,2]
[404470298,1770169869770,500.0,0.00013699,2]
[404470299,1770169869808,582.6854508,0.00014795,2]
[404470300,1770169869866,1000.0,0.00014247,2]
[404470301,1770169882321,406.4569035,0.00013273,2]
[404470302,1770169882472,93.5430965,0.00013273,2]
[404470303,1770169882504,1019.71948296,0.00013821,2]
[404470304,1770169925465,500.0,0.00013699,2]
[404470305,1770169925511,1000.0,0.00014247,2]
[404470306,1770169925570,1500.0,0.00014795,2]
[404470307,1770169925625,2000.0,0.00015342,2]
[404470308,1770169930968,305.56010017,0.00013673,2]
[404470309,1770170046544,250.18374485,0.00013699,2]
[404470310,1770170051640,3603.69840499,0.000155,2]
[404470311,1770170142126,10000.0,0.000155,2]
[404470312,1770170158995,4727.29517053,0.000155,2]
[404470313,1770170168476,500.0,0.00013699,2]
[404470314,1770170168526,1000.0,0.00014247,2]
[404470315,1770170168588,1500.0,0.00014795,2]
[404470316,1770170178460,10000.0,0.00015,2]
[404470317,1770170195015,7772.33319656,0.00015,2]
[404470318,1770170210899,208.85,0.000145,2]
[404470319,1770170232635,4446.12834888,0.00040022,60]
[404470320,1770170264750,389.904046,0.00040022,120]
[404470321,1770170284279,500.9830855,0.00013699,2]
[404470322,1770170286924,589.01158749,0.00013699,2]
[404470323,1770170365808,7500.37,0.000145,2]
[404470324,1770170408024,1000.0,0.00014247,2]
[404470325,1770170408090,500.0,0.00013699,2]
[404470326,1770170531045,500.0,0.00013699,2]
[404470327,1770170531094,1000.0,0.00014247,2]
[404470329,1770170647869,355.236831,0.00013699,2]
[404470330,1770170821650,5000.0,0.000145,2]
[404470331,1770170830157,-300.0,0.00021917,2]
[404470332,1770170830177,-4.92802939,0.00021918,2]
[404470333,1770170893956,202.32715655,0.00013699,2]
[404470334,1770170961089,-711.95375518,0.00021699,2]
[404470335,1770170961110,-145.07197061,0.00021918,2]
[404470336,1770170961132,-10307.02523127,0.00021918,2]
[404470337,1770170961153,-300.0,0.00022466,2]
[404470338,1770170961172,-301.73085861,0.00023014,2]
[404470339,1770170961192,-2055.92949333,0.00030627,2]
[404470340,1770170964101,-1524.00509587,0.00030627,2]
[404470341,1770170964121,-163.047,0.00032792,33]
[404470342,1770170964141,-286.78756096,0.000332,117]
[404470343,1770170964162,-500.0,0.00035258,7]
[404470344,1770170964182,-500.0,0.00035258,7]
[404470345,1770170964204,-500.0,0.00035258,7]
[404470346,1770170964224,-251.33453256,0.00035258,7]
[404470347,1770170964245,-500.0,0.00035258,7]
[404470348,1770170964265,-500.0,0.00035258,7]
[404470349,1770170964286,-500.0,0.00035258,7]
[404470350,1770170964308,-500.0,0.00035258,7]
[404470351,1770170964328,-500.0,0.00035258,7]
[404470352,1770170964347,-500.0,0.00035258,7]
[404470353,1770170964368,-195.01149458,0.00035258,7]
[404470354,1770170964388,-500.0,0.00035258,7]
[404470355,1770170964407,-594.78355493,0.00035258,7]
[404470356,1770170964428,-271.69891049,0.00035258,7]
[404470357,1770170964448,-10307.02523127,0.00038404,2]
[404470358,1770170964468,-10063.0354831,0.00043861,2]
[404470359,1770170964487,-232.84,0.0004481,2]
[404470360,1770170964506,-363.0,0.0004651,2]
[404470361,1770171007960,1440.23623332,0.00026849,2]
[404470362,1770171007984,1950.36572266,0.00026849,2]
[404470387,1770171031614,-6631.15247489,0.00026849,2]
[404470388,1770171031623,-864.59071894,0.00043165,2]
[404470409,1770171037683,-232.75372833,0.00043164,31]
[404470410,1770171037693,-188.33461051,0.00043164,7]
[404470411,1770171037702,-252.41099006,0.00043164,31]
[404470412,1770171037710,-2763.35311372,0.00043165,2]
[404470413,1770171037724,-283.32,0.00043165,2]
[404470414,1770171037826,-233.88089215,0.00043165,2]
[404470605,1770171043877,-5876.60970606,0.00043165,2]
[404470606,1770171043887,-282.0,0.0005,120]
[404470607,1770171043897,-892.25,0.0005,120]
[404470608,1770171043907,-168.0,0.00050701,2]
[404470609,1770171043916,-168.0,0.00050846,2]
[404470610,1770171043926,-741.08018794,0.0005094,2]
[404470611,1770171043938,-1371.0,0.00051052,120]
[404470612,1770171043947,-718.0,0.00051052,2]
[404470613,1770171043956,-179.0,0.00051052,120]
[404470614,1770171043966,-150.0,0.00051052,120]
[404470615,1770171043975,-168.0,0.00051567,2]
[404470616,1770171043984,-168.0,0.0005164,2]
[404470617,1770171043994,-177.0,0.00053052,120]
[404470618,1770171044004,-168.0,0.00053367,2]
[404470619,1770171044013,-5411.71967574,0.000537,120]
[404470620,1770171044180,-447.54,0.000537,120]
[404470627,1770171045921,-231.8,0.0004,120]
[404470628,1770171045931,-5434.77538026,0.000537,120]
[404470629,1770171045940,-549.381,0.00054052,2]
[404470630,1770171045949,-159.49,0.00054052,120]
[404470631,1770171045959,-814.39039244,0.00054289,30]
[404470632,1770171045968,-150.386625,0.000544,2]
[404470633,1770171045978,-180.61083864,0.0005441,30]
[404470634,1770171045987,-606.0998806,0.00054578,30]
[404470635,1770171045996,-606.0998806,0.00054578,30]
[404470636,1770171046006,-235.9753155,0.00054578,30]
[404470637,1770171046015,-606.0998806,0.00054578,30]
[404470638,1770171046024,-209.87666338,0.000546,26]
[404470639,1770171046033,-150.203,0.00054617,120]
[404470640,1770171046043,-150.681,0.00054617,120]
[404470641,1770171046052,-150.0,0.00054617,120]
[404470642,1770171046066,-167.85,0.0005469,10]
[404470643,1770171046075,-26117.9103179,0.00054695,120]
[404470644,1770171046085,-29175.85515412,0.000547,120]
[404470645,1770171046094,-530.75,0.000547,30]
[404470646,1770171046104,-882.314,0.000547,30]
[404470647,1770171046114,-155.46,0.000547,14]
[404470648,1770171046124,-70544.51941508,0.000547,120]
[404470649,1770171046133,-5869.11237452,0.00054784,18]
[404470650,1770171046142,-38000.0,0.00054785,18]
[404470651,1770171046151,-100635.20757777,0.00054793,120]
[404470652,1770171046161,-151.0,0.00054793,120]
[404470653,1770171046170,-151.0,0.00054793,120]
[404470654,1770171046178,-200.10006,0.00054793,90]
[404470655,1770171046188,-200.10006,0.00054793,90]
[404470656,1770171046197,-200.10006,0.00054793,90]
[404470657,1770171046206,-200.10006,0.00054793,90]
[404470658,1770171046215,-425.592502,0.00054793,120]
[404470659,1770171046224,-425.592502,0.00054793,120]
[404470660,1770171046234,-425.592502,0.00054793,120]
[404470661,1770171046243,-425.592502,0.00054793,120]
[404470662,1770171046252,-291.312354,0.00054793,120]
[404470663,1770171046261,-151.0,0.00054793,60]
[404470664,1770171046270,-206.37497,0.00054793,2]
[404470665,1770171046280,-196.73406399,0.00054793,18]
[404470666,1770171046289,-300.0,0.00054794,2]
[404470667,1770171046299,-300.0,0.00054794,2]
[404470668,1770171046309,-547.76247981,0.00054794,120]
[404470669,1770171046320,-547.20771406,0.00054794,120]
[404470670,1770171046330,-500.0,0.00054794,120]
[404470671,1770171046340,-500.0,0.00054794,120]
[404470672,1770171046349,-500.0,0.00054794,120]
[404470673,1770171046359,-500.0,0.00054794,120]
[404470674,1770171046368,-500.0,0.00054794,120]
[404470675,1770171046377,-506.90943126,0.00054794,120]
[404470676,1770171046387,-200.0,0.00054794,120]
[404470677,1770171046396,-529.80948442,0.00054794,120]
[404470678,1770171046406,-500.0,0.00054794,120]
[404470679,1770171046415,-503.94637396,0.00054794,120]
[404470680,1770171046425,-531.34016475,0.00054794,120]
[404470681,1770171046434,-509.09516317,0.00054794,120]
[404470682,1770171046444,-380.76808332,0.00054794,120]
[404470683,1770171046454,-500.0,0.00054794,120]
[404470684,1770171046463,-500.0,0.00054794,120]
[404470685,1770171046472,-500.0,0.00054794,120]
[404470686,1770171046482,-513.23266868,0.00054794,120]
[404470687,1770171046492,-500.0,0.00054794,120]
[404470688,1770171046504,-500.0,0.00054794,120]
[404470689,1770171046514,-534.88000593,0.00054794,120]
[404470690,1770171046524,-500.0,0.00054794,120]
[404470691,1770171046533,-518.49523096,0.00054794,120]
[404470692,1770171046543,-500.0,0.00054794,120]
[404470693,1770171046553,-198.07198566,0.00054794,120]
[404470694,1770171046565,-500.0,0.00054794,120]
[404470695,1770171046574,-513.95115088,0.00054794,120]
[404470696,1770171046583,-505.20618862,0.00054794,120]
[404470697,1770171046592,-856.59441285,0.00054794,2]
[404470698,1770171046601,-505.81682944,0.00054794,120]
[404470699,1770171046610,-500.0,0.00054794,60]
[404470700,1770171046619,-500.0,0.00054794,120]
[404470701,1770171046628,-500.0,0.00054794,120]
[404470702,1770171046637,-502.24157408,0.00054794,120]
[404470703,1770171046647,-510.7519942,0.00054794,120]
[404470704,1770171046656,-500.0,0.00054794,55]
[404470705,1770171046667,-500.0,0.00054794,120]
[404470706,1770171046676,-506.47254762,0.00054794,120]
[404470707,1770171046686,-500.0,0.00054794,120]
[404470708,1770171046695,-550.0,0.00054794,30]
[404470709,1770171046706,-4910.19,0.00054794,120]
[404470710,1770171046716,-511.61848283,0.00054794,120]
[404470711,1770171046734,-526.65932347,0.00054794,120]
[404470712,1770171046744,-500.0,0.00054794,120]
[404470713,1770171046754,-500.0,0.00054794,120]
[404470714,1770171046766,-500.0,0.00054794,120]
[404470715,1770171046776,-500.0,0.00054794,120]
[404470716,1770171046788,-500.0,0.00054794,120]
[404470717,1770171046798,-500.0,0.00054794,120]
[404470718,1770171046807,-500.0,0.00054794,120]
[404470719,1770171046816,-532.96,0.00054794,120]
[404470720,1770171046826,-515.44987918,0.00054794,120]
[404470721,1770171046835,-570.58715301,0.00054794,120]
[404470722,1770171046845,-500.0,0.00054794,120]
[404470723,1770171046854,-500.0,0.00054794,120]
[404470724,1770171046863,-505.064469,0.00054794,120]
[404470725,1770171046873,-500.0,0.00054794,120]
[404470726,1770171046882,-510.06003395,0.00054794,120]
[404470727,1770171046891,-510.66724325,0.00054794,120]
[404470728,1770171046901,-507.19055344,0.00054794,120]
[404470729,1770171046911,-510.14334749,0.00054794,120]
[404470730,1770171046920,-331.52747673,0.00054794,120]
[404470731,1770171046930,-500.0,0.00054794,120]
[404470732,1770171046939,-500.0,0.00054794,120]
[404470733,1770171046949,-546.76568986,0.00054794,120]
[404470734,1770171046958,-468.06439785,0.00054794,120]
[404470735,1770171046967,-531.31918286,0.00054794,120]
[404470736,1770171046977,-511.75361726,0.00054794,120]
[404470737,1770171046986,-512.65785153,0.00054794,120]
[404470738,1770171046995,-623.4638563,0.00054794,120]
[404470739,1770171047005,-517.13733243,0.00054794,120]
[404470740,1770171047014,-549.5381887,0.00054794,120]
[404470741,1770171047024,-531.99090921,0.00054794,120]
[404470742,1770171047033,-519.1899973,0.00054794,120]
[404470743,1770171047042,-537.92356739,0.00054794,120]
[404470744,1770171047051,-500.0,0.00054794,120]
[404470745,1770171047060,-500.0,0.00054794,120]
[404470746,1770171047069,-530.33496509,0.00054794,120]
[404470747,1770171047078,-500.0,0.00054794,120]
[404470748,1770171047087,-500.0,0.00054794,2]
[404470749,1770171047096,-514.76124427,0.00054794,120]
[404470750,1770171047105,-517.26561787,0.00054794,120]
[404470751,1770171047114,-511.67864257,0.00054794,120]
[404470752,1770171047123,-518.00006135,0.00054794,120]
[404470753,1770171047134,-514.56115828,0.00054794,120]